Cogmind - Beta 13 X1 @@@ ROGUE MODE // 2023.06.27 @ 06:52:24 Player: maxwell Result: Self-destructed Performance ------------- Evolutions (1) 500 Regions Visited (3) 600 Robots Destroyed (15) 75 Value Destroyed (347) 347 Prototype IDs (0) 0 Alien Tech Used (0) 0 Bonus (0) 0 TOTAL SCORE: 1522 Bonus ------- None Cogmind --------- Core Integrity 400/400 Matter 260/300 Energy 125/125 System Corruption 0% Temperature Cool (0) Movement Walking (260) Ox2 Location -9/Materials Parts ------- > --- POWER (1) -------- Light Ion Engine > --- PROPULSION (2) --- Aluminum Leg Aluminum Leg > --- UTILITY (4) ------ High-capacity Storage Unit Propulsion Shielding > --- WEAPON (2) ------- Heavy EM Pulse Gun Heavy EM Pulse Gun > --- INVENTORY (20) --- Light Ion Engine Light Treads Light Treads Light Treads Light Treads Wheel Compact Wheel Large Storage Unit Experimental Sensor Array Hacking Suite Heavy EM Pulse Gun Assault Rifle Assault Rifle Grenade Launcher Hammer Mining Claw Peak State ------------ > --- POWER ------------ Light Ion Engine > --- PROPULSION ------- Aluminum Leg Aluminum Leg > --- UTILITY ---------- High-capacity Storage Unit Propulsion Shielding > --- WEAPON ----------- Heavy EM Pulse Gun Heavy EM Pulse Gun > --- INVENTORY -------- Light Ion Engine Light Treads Light Treads Light Treads Light Treads Wheel Compact Wheel Large Storage Unit Hacking Suite Heavy EM Pulse Gun Heavy EM Pulse Gun Assault Rifle Assault Rifle Grenade Launcher Hammer Mining Claw [Rating: 11] Favorites ----------- Power Light Ion Engine Engine Light Ion Engine Propulsion Aluminum Leg Leg Aluminum Leg Utility Propulsion Shielding Device ECM Suite Storage Large Storage Unit Protection Propulsion Shielding Weapon Heavy EM Pulse Gun Energy Gun Heavy EM Pulse Gun Ballistic Gun Assault Rifle Launcher Grenade Launcher Slashing Weapon Mining Claw Build | -11 -10 -10 -9 ------- Run | Jun Mat Min Mat Slots Evolved 2 | . . . 2 Power . | . . . . Propulsion . | . . . . Utility 2 | . . . 2 Weapon . | . . . . Parts Attached 11 | . 10 1 . Power . | . . . . Engine . | . . . . Core . | . . . . Reactor . | . . . . Propulsion . | . . . . Treads . | . . . . Leg . | . . . . Wheel . | . . . . Hover . | . . . . Flight . | . . . . Utility 4 | . 4 . . Device 1 | . 1 . . Storage 2 | . 2 . . Processor . | . . . . Hackware . | . . . . Protection 1 | . 1 . . Artifact . | . . . . Weapon 7 | . 6 1 . Energy Gun 3 | . 2 1 . Energy Cannon . | . . . . Ballistic Gun 2 | . 2 . . Ballistic Cannon . | . . . . Launcher 1 | . 1 . . Special Weapon . | . . . . Impact Weapon . | . . . . Slashing Weapon 1 | . 1 . . Piercing Weapon . | . . . . Special Melee Weapon . | . . . . Unidentified Prototypes . | . . . . Parts Lost 1 | . . 1 . Power . | . . . . Propulsion . | . . . . Utility . | . . . . Weapon 1 | . . 1 . Highest Loss Streak 1 | . . 1 . To Critical Strikes . | . . . . Average Slot Usage (%) 98 | . 97 100 . Engine 14 | . 14 14 . Leg 28 | . 28 28 . Device 3 | . 5 . . Storage 14 | . 14 14 . Protection 9 | . 6 14 . Energy Gun 13 | . 4 28 . Ballistic Gun 8 | . 14 . . Launcher 4 | . 7 . . Slashing Weapon 1 | . 1 . . Naked Turns . | . . . . Heaviest Build 50 | 11 50 50 . Greatest Support 20 | 20 20 20 . Greatest Overweight (x) 2 | . 2 2 . Average Overweight (x) 1 | . . 2 . Largest Inventory Capacity 20 | . 20 20 . Average Capacity 16 | . 13 20 . Most Carried 17 | . 16 17 . Average Carried 14 | . 12 16 . Final Capacity 20 | 8 20 20 20 Final Carried 16 | 6 16 16 16 Class Distribution -------------------- 100% | Mutant Dominant Class ---------------- Mutant | -10/Materials Mutant | -10/Mines Mutant | -9/Materials Resources | -11 -10 -10 -9 ----------- Run | Jun Mat Min Mat Matter Collected 463 | 200 132 131 . Remotely . | . . . . Salvage Created 433 | . 254 179 . Parts 25 | . 14 11 . Haulers Intercepted . | . . . . Recyclers Shooed 1 | . 1 . . Parts Field Recycled . | . . . . Retrieved Matter . | . . . . Parts Self-Destructed . | . . . . Prevented . | . . . . Kills | -11 -10 -10 -9 ------- Run | Jun Mat Min Mat Combat Hostiles Destroyed 11 | . 7 4 . Guns 5 | . 2 3 . AOE 6 | . 5 1 . Classes Destroyed 5 | . 5 . . Recycler 2 | . 2 . . Operator 1 | . 1 . . Watcher 1 | . 1 . . Swarmer 5 | . 5 . . Grunt 6 | . 2 4 . Best Kill Streak 4 | . 4 2 . Combat Bots Only 2 | . 2 2 . Max Kills in Single Turn 2 | . 1 2 . Gunslinging . | . . . . Exploded 1 | . 1 1 . Melee . | . . . . Uniques/NPCs Destroyed . | . . . . Combat | -11 -10 -10 -9 -------- Run | Jun Mat Min Mat Damage Taken 475 | . 254 221 . Core 120 | . 82 38 . Absorbed by Shields . | . . . . Redirected to Shielding 28 | . 9 19 . Core Remaining (%) 76 | 100 . 52 . Volleys Fired 37 | . 24 13 . Largest 2 | . 2 2 . Hottest 90 | . 90 90 . Shots Fired 58 | . 32 26 . Gun 42 | . 16 26 . Cannon . | . . . . Launcher 16 | . 16 . . Special . | . . . . Kinetic 14 | . 14 . . Thermal . | . . . . Explosive 16 | . 16 . . Electromagnetic 28 | . 2 26 . Robot Hit Streak 3 | . 3 3 . Robot Miss Streak 6 | . 2 6 . Penetration Max . | . . . . Secondary Targets 3 | . 1 2 . Max Gunslinging Chain 1 | . 1 1 . Shots Hit Robots 21 | . 11 10 . Core Hits 23 | . 16 7 . Critical Kills . | . . . . Critical Parts Destroyed . | . . . . Critical Strikes . | . . . . Melee Attacks 3 | . 3 . . Impact . | . . . . Slashing 3 | . 3 . . Piercing . | . . . . Sneak Attacks 1 | . 1 . . Combat Hostiles . | . . . . Follow-up Attacks . | . . . . Damage Inflicted 1087 | . 877 210 . Guns 271 | . 110 161 . Cannons . | . . . . Explosions 740 | . 696 44 . Melee 71 | . 71 . . Ramming 5 | . . 5 . Kinetic 92 | . 92 . . Thermal 84 | . 40 44 . Explosive 656 | . 656 . . Electromagnetic 179 | . 18 161 . Impact . | . . . . Slashing 71 | . 71 . . Piercing . | . . . . Highest Corruption . | . . . . Average Corruption . | . . . . Corruption Purged . | . . . . Corruption Blocked . | . . . . Overload Shots . | . . . . Overflow Damage 14 | . 14 . . Projectiles . | . . . . Explosions 14 | . 14 . . Melee . | . . . . Knockbacks . | . . . . Impact . | . . . . Kinetic . | . . . . Secondary . | . . . . Self-Inflicted Damage 73 | . 73 . . Shots 3 | . 3 . . Rammed . | . . . . Targets Rammed 2 | . . 2 . Kicked 2 | . . 2 . Crushed . | . . . . Highest Temperature 264 | . 42 264 . Average Temperature 88 | . 18 96 . Received Heat Transfer 159 | . 18 141 . Effects 1 | . . 1 . Interference 1 | . . 1 . Siege Activations . | . . . . Robots Corrupted . | . . . . Combat Hostiles . | . . . . Parts Fried . | . . . . Impact Corruptions . | . . . . Robots Melted . | . . . . Combat Hostiles . | . . . . Parts Melted . | . . . . Heat Transferred . | . . . . Parts Sabotaged . | . . . . Parts Stolen . | . . . . Parts Stripped . | . . . . Power Chain Reactions 2 | . 1 1 . Missiles Intercepted . | . . . . Alert | -11 -10 -10 -9 ------- Run | Jun Mat Min Mat Peak Influence 251 | . 251 127 . Initial 19 | . . 12 19 Average 89 | . 95 79 . Maximum Alert Level 1 | . 1 . . Low Security (%) 96 | . 93 100 . Level 1 3 | . 6 . . Level 2 . | . . . . Level 3 . | . . . . Level 4 . | . . . . Level 5 . | . . . . High Security . | . . . . Max Security . | . . . . Squads Dispatched 2 | . 1 1 . Investigation 1 | . . 1 . Extermination . | . . . . Reinforcement 1 | . 1 . . Assault . | . . . . Garrison . | . . . . Intercept . | . . . . Searches Triggered . | . . . . Construction Impeded . | . . . . Haulers Reinforced . | . . . . Active Scanning Responses . | . . . . Cargo Convoy Interrupts . | . . . . Stealth | -11 -10 -10 -9 --------- Run | Jun Mat Min Mat Distress Signals . | . . . . Communications Jammed . | . . . . Distress Signals . | . . . . Times Spotted 22 | . 16 6 . Peak Tracking Total 4 | . 4 2 . Tactical Retreats 4 | . 2 2 . Traps | -11 -10 -10 -9 ------- Run | Jun Mat Min Mat Traps Triggered . | . . . . Indirectly . | . . . . Trap Hack Attempts . | . . . . Triggered . | . . . . Disarmed . | . . . . Reprogrammed . | . . . . Reused . | . . . . Traps Extracted . | . . . . Installed . | . . . . Triggered . | . . . . Machines | -11 -10 -10 -9 ---------- Run | Jun Mat Min Mat Machines Disabled 1 | . 1 . . Max in Single Turn 1 | . 1 . . Machines Repaired . | . . . . Machines Sabotaged . | . . . . Overloaded Fab Kills . | . . . . Hacking | -11 -10 -10 -9 --------- Run | Jun Mat Min Mat Machines Accessed 1 | . . 1 . Terminals 1 | . . 1 . Fabricators . | . . . . Repair Stations . | . . . . Recycling Units . | . . . . Scanalyzers . | . . . . Garrison Access . | . . . . Total Hacks 2 | . . 2 . Successful . | . . . . Failed 2 | . . 2 . Catastrophic 1 | . . 1 . Database Lockouts . | . . . . Manual 2 | . . 2 . Terminals 2 | . . 2 . Fabricators . | . . . . Repair Stations . | . . . . Recycling Units . | . . . . Scanalyzers . | . . . . Garrison Access . | . . . . Terminal Hacks . | . . . . Fabricator Hacks . | . . . . Repair Station Hacks . | . . . . Recycling Unit Hacks . | . . . . Scanalyzer . | . . . . Garrison Access Hacks . | . . . . Unauthorized Hacks . | . . . . Terminals . | . . . . Fabricators . | . . . . Repair Stations . | . . . . Recycling Units . | . . . . Scanalyzers . | . . . . Garrison Access . | . . . . Data Cores Recovered 1 | . 1 . . Used . | . . . . Hacking Detections 1 | . . 1 . Full Trace Events 1 | . . 1 . Feedback Events . | . . . . Feedback Blocked . | . . . . Robot Schematics Acquired . | . . . . Robots Built . | . . . . Authchips . | . . . . Time . | . . . . Total Robot Build Rating . | . . . . Part Schematics Acquired . | . . . . Parts Built . | . . . . Authchips . | . . . . Time . | . . . . Total Part Build Rating . | . . . . Parts Repaired . | . . . . Time . | . . . . Parts Recycled . | . . . . Recycled Matter . | . . . . Retrieved Matter . | . . . . Retrieved Components . | . . . . Parts Scanalyzed . | . . . . Part Schematics Acquired . | . . . . Parts Damaged . | . . . . Bothacking | -11 -10 -10 -9 ------------ Run | Jun Mat Min Mat Used RIF Installer . | . . . . Robots Hacked . | . . . . Non-combat . | . . . . Combat . | . . . . Robot Hacks Applied . | . . . . Relay Couplers Released . | . . . . Fabnet Peak Effective % . | . . . . Robots Rewired . | . . . . Allies Hacked . | . . . . Hacks Repelled . | . . . . Allies | -11 -10 -10 -9 -------- Run | Jun Mat Min Mat Total Allies . | . . . . Largest Group . | . . . . Highest-Rated Group . | . . . . Highest-Rated Ally . | . . . . Total Orders . | . . . . Ally Attacks . | . . . . Total Damage . | . . . . Kills . | . . . . Allies Corrupted . | . . . . Allies Melted . | . . . . Intel | -11 -10 -10 -9 ------- Run | Jun Mat Min Mat Robot Analysis Total . | . . . . Derelict Logs Recovered . | . . . . Drone Launches . | . . . . Drone Recoveries . | . . . . Exploration | -11 -10 -10 -9 ------------- Run | Jun Mat Min Mat Turns Passed 1401 | . 855 546 . Spaces Moved 625 | 1 441 183 . Core . | . . . . Treads . | . . . . Legs 625 | 1 441 183 . Wheels . | . . . . Hover . | . . . . Flight . | . . . . Fastest Speed 120 | 120 120 260 . Average Speed 195 | 120 168 260 . Slowest Speed 260 | 120 260 260 . Overloaded Moves . | . . . . Propulsion Burnouts . | . . . . Robots Hopped . | . . . . Cave-ins Triggered . | . . . . Exploration Rate (%) 27 | 1 72 37 1 Regions Visited 3 Branch Regions 1 Pre-discovered Areas . | . . . . Known Exits Taken . | . . . . Unknown Exits Taken 3 | 1 1 1 . Scrap Searched . | . . . . Spaces Dug 7 | . 7 . . Terrain Destroyed 114 | . 109 5 . Melee . | . . . . Projectile . | . . . . AOE 114 | . 109 5 . Terrain Rammed . | . . . . Walls Destroyed . | . . . . Machines Disabled . | . . . . Actions | -11 -10 -10 -9 --------- Run | Jun Mat Min Mat Total 739 | . 514 225 . Wait 40 | . 14 26 . Move 622 | . 440 182 . Hop . | . . . . Pick Up 15 | . 14 1 . Fast Attach 5 | . 5 . . Attach 1 | . . 1 . Detach . | . . . . Swap 5 | . 5 . . Drop 9 | . 9 . . Fire 37 | . 24 13 . Melee 3 | . 3 . . Ram . | . . . . Kick 2 | . . 2 . Crush . | . . . . Escape Stasis . | . . . . Rewire . | . . . . Trap . | . . . . Miscellaneous . | . . . . Route ------- -11/Junkyard -10/Materials (discovered 3 exits: [*Mat x2] / *Min) -10/Mines -9/Materials History --------- Turn | Location | Event 1 | -11/Junkyard | Discovered new exit (range 0) 1 | -11/Junkyard | Entered Materials 233 | -10/Materials | Discovered new exit (range 11) 311 | -10/Materials | Build established: Mutant 708 | -10/Materials | Discovered new exit (range 10) 731 | -10/Materials | Discovered new exit (range 8) 856 | -10/Materials | Entered Mines 1021 | -10/Mines | Found a damaged Exp. Sensor Array with a note attached 1026 | -10/Mines | Found Prototype Device 1389 | -10/Mines | Discovered new exit (range 6) 1402 | -10/Mines | Entered Materials 1402 | -9/Materials | Evolved 2 slots: Utility x2 1402 | -9/Materials | Self-destructed Last Messages --------------- top of us... With this we can! Deliver it to Megawrench for repairs then we'll never be afraid of an ambush while sneaking around Materials again, ha." 01026_ Acquired Prototype Device. 01075_ G-34 Mercenary destroyed. 01075_ Switching to secondary target: G-34 Mercenary. 01085_ Overheating: System interference. 01085_ Hvy. EM Pulse Gun temporarily disabled. 01142_ Acquired 36 matter. 01257_ Kicked R-06 Scavenger. 01324_ Hvy. EM Pulse Gun destroyed. 01332_ G-47 Trooper IFF system glitched. 01335_ G-47 Trooper destroyed. 01338_ Acquired 51 matter. 01347_ R-06 Scavenger collects Lgt. Ion Engine. 01378_ Kicked T-07 Excavator out of the way. 01389_ EXIT=FOUND PARAMETERS=UTILITY+2 LOCATION=UNKNOWN GOAL=ESCAPE Map ----- +----------------------------------------------------+ | ?????????????????????????????????????????????????? | | ?????????????????????????????????????????????????? | | ?????????????????????????????????????????????????? | | ?????????????????????????????????????????????????? | | ?????????????????????????????????????????????????? | | ?????????????????????????????????????????????????? | | ?????????????????????????????????????????????????? | | ?????????????????????????????????????????????????? | | ?????????????????????????????????????????????????? | | ?????????????????????????????????????????????????? | | ???????????????????????? ??????????????????????? | | ???????????????????????? ??????????????????????? | | ???????????????????????? ??????????????????????? | | ???????????????????????# #?????????????????????? | | ???????????????????????# #?????????????????????? | | ???????????????????????# #?????????????????????? | | ???????????????????????+ +?????????????????????? | | ???????????????????????# #?????????????????????? | | ???????????????????????# #?????????????????????? | | ???????????????????????# #?????????????????????? | | ???????????????????????# #?????????????????????? | | ???????????????????????# #?????????????????????? | | ???????????????????????# #?????????????????????? | | ???????????????????????+ #?????????????????????? | | ???????????????????????# #?????????????????????? | | ???????????????????????# @ #?????????????????????? | | ???????????????????????# #?????????????????????? | | ???????????????????????#####?????????????????????? | | ?????????????????????????????????????????????????? | | ?????????????????????????????????????????????????? | | ?????????????????????????????????????????????????? | | ?????????????????????????????????????????????????? | | | | | | | | | | | | | | | | | | | | | | | | | | | | | | | | | | | | | +----------------------------------------------------+ Best States ------------- Heat Dissipation 25 Energy Generation 10 Energy Capacity 125 Matter Stores 300 Matter Capacity 300 Sight Range 16 Terrain Scan Density 10 ECM Strength 1 Propulsion Shielding 33 Evasion (%) 55 Item Schematics ----------------- None Robot Schematics ------------------ None Fabricated ------------ Nothing Alien Tech Used ----------------- None Achievements -------------- None Challenges ------------ None Game ------ Seed StorageReinforcedMembrane Manual? 0 Play Time 00:04:20 Cumulative 369.0 hours Start 2023.06.27 @ 06:48:06 End 2023.06.27 @ 06:52:24 Sessions 1 Manual Loads 0 Difficulty Rogue Special Mode None Game No. 535 Rogue 508 Adventurer 4 Explorer 23 Win Type - Total 20 Types 14/0/2/2/1/0/0/1/0 Lore% 79 Gallery% 91 Achievement% 83 Wizard Run 0 Options --------- ASCII 0 Keyboard 1 Movement Numpad Keybinds 0 Fullscreen 1 Font 18/SmallcapsGlow Map View 76x50 Tactical HUD 1 Map Filters NONE Filters NONE Steam 1 RUN: 7c674ff4-dc24-4760-ba26-2a9d38d0c250